bitfinex-derivatives/quotes_ETHF0:USTF0_20250528
["timestamp","ask_amount","ask_price","bid_price","bid_amount"]
[1748441547512,0.75669,2641.9,2641.7,0.00567333]
[1748441547711,3.2078,2642.0,2641.7,0.00567333]
[1748441547916,0.75672,2641.8,2641.7,0.00567333]
[1748441550110,5.75672,2641.8,2641.7,0.00567333]
[1748441550512,0.75672,2641.8,2641.7,0.00567333]
[1748441553922,5.75672,2641.8,2641.7,0.00567333]
[1748441554712,0.75672,2641.8,2641.7,0.00567333]
[1748441555613,0.75697,2641.0,2640.9,0.75696]
[1748441556018,3.96474,2641.1,2640.9,0.75696]
[1748441556315,3.96474,2641.1,2641.0,2.03834]
[1748441556514,3.2078,2641.4,2641.1,1.8923]
[1748441556715,3.2078,2641.4,2641.3,0.75686]
[1748441556918,0.75681,2641.6,2641.5,0.75679]
[1748441557425,6.17613,2641.7,2641.2,1.2814]
[1748441557617,0.75685,2641.4,2641.3,0.75684]
[1748441558016,0.75686,2641.3,2641.2,1.2814]
[1748441558215,0.75697,2641.0,2640.9,0.75696]
[1748441558513,0.75694,2641.0,2640.9,2.02187]
[1748441558719,0.75203099,2641.0,2640.9,2.02187]
[1748441559116,0.75203099,2641.0,2640.9,1.2649]
[1748441559515,0.75203099,2641.0,2640.9,2.02187]
[1748441560219,0.75697,2640.9,2640.8,0.00567333]
[1748441560526,1.82067,2640.9,2640.8,0.00567333]
[1748441560711,1.82067,2640.9,2640.6,1.2649]
[1748441560712,6.16677464,2640.9,2639.9,3.2078]
[1748441560918,0.75717,2640.2,2640.1,1.2649]
[1748441561124,0.7572,2640.1,2640.0,0.75721]
[1748441561524,1.89294,2640.2,2639.8,0.75728]
[1748441561722,1.89294,2640.2,2639.7,0.76297333]
[1748441562024,3.96509,2639.8,2639.7,0.00567333]
[1748441562223,3.2078,2639.8,2639.7,0.76299333]
[1748441562418,3.2078,2639.8,2639.7,0.00567333]
[1748441562611,3.2078,2639.8,2639.7,1.27637333]
[1748441562815,3.2078,2639.8,2639.7,2.03369333]
[1748441563016,3.96509,2639.8,2639.7,1.27637333]
[1748441563220,3.96509,2639.8,2639.7,0.00567333]
[1748441563520,8.96509,2639.8,2639.7,0.00567333]
[1748441563727,3.96509,2639.8,2639.7,0.00567333]
[1748441564425,0.75752,2639.0,2638.9,3.2078]
[1748441564624,3.96529,2639.1,2639.0,1.3257]
[1748441565315,0.75762,2638.7,2638.5,3.2078]
[1748441565519,3.2078,2638.7,2638.3,0.00568429]
[1748441565720,8.3168,2638.7,2638.3,1.33138429]
[1748441565922,0.75769,2638.4,2638.3,1.33138429]
[1748441566123,1.0654,2638.6,2638.3,1.33138429]
[1748441566324,0.75769,2638.4,2638.3,0.00568429]
[1748441566625,3.96549,2638.4,2638.3,0.00568429]
[1748441566822,3.96549,2638.4,2637.6,1.89476]
[1748441566823,0.75783,2637.9,2637.8,1.3257]
[1748441567024,0.75789,2637.7,2637.5,0.75794]
[1748441567221,0.75788,2637.8,2637.6,0.75792]
[1748441567525,3.2078,2637.9,2637.4,3.2078]
[1748441567728,0.75776,2638.2,2638.1,0.75778]
[1748441568026,3.96554,2638.3,2638.1,0.75776]
[1748441568325,3.96554,2638.3,2636.7,3.2078]
[1748441568326,10.10215,2638.3,2636.7,3.2078]
[1748441568520,3.2078,2637.4,2637.2,1.2693]
[1748441568721,3.96579,2637.4,2637.3,0.75801]
[1748441569027,3.2078,2637.8,2637.7,0.75789]
[1748441569226,3.2078,2637.8,2637.6,0.75791]
[1748441569424,3.96568,2637.8,2637.7,1.2693]
[1748441569722,3.2078,2637.8,2637.7,2.02719]
[1748441570030,0.00568429,2638.0,2637.9,0.75783]
[1748441570321,3.96542,2638.7,2638.1,1.89445]
[1748441570524,3.2078,2638.7,2638.6,0.75763]
[1748441570720,3.30985901,2639.0,2638.9,0.75755]
[1748441570921,0.10205901,2639.0,2638.9,0.75755]
[1748441571122,3.2078,2639.3,2639.2,0.75746]
[1748441571429,0.00568429,2639.5,2639.0,1.26838429]
[1748441571623,0.00568429,2639.5,2639.4,0.7574]
[1748441572324,0.00568429,2639.5,2639.3,0.75742]
[1748441572525,0.00568429,2639.5,2639.4,0.7574]
[1748441573219,0.76308429,2639.5,2639.3,0.75741]
[1748441573531,0.75743,2639.3,2639.2,1.2627]
[1748441573822,3.2078,2639.3,2639.2,2.02016]
[1748441574024,0.00568429,2639.5,2639.2,1.2627]
[1748441574229,0.7574,2639.4,2639.3,1.3577]
[1748441574827,0.00568429,2639.5,2639.4,0.7574]
[1748441575227,0.75767,2638.5,2637.9,1.89456]
[1748441575423,3.2078,2638.3,2638.2,0.75775]
[1748441575623,3.2078,2638.6,2638.5,0.75766]
[1748441575827,3.2078,2638.6,2637.9,1.1723]
[1748441576031,3.2078,2638.6,2638.5,0.75766]
[1748441576337,3.2078,2638.9,2638.8,0.75758]
[1748441577023,3.2078,2638.9,2638.8,5.75758]
[1748441577425,0.00568429,2639.5,2639.4,0.7574]
[1748441577930,0.00568429,2639.5,2639.1,1.1723]
[1748441578230,3.96528,2639.2,2638.6,1.1723]
[1748441578427,3.2078,2639.3,2638.7,1.2587]
[1748441578628,3.96534,2639.0,2638.8,0.75757]
[1748441578824,3.96534,2639.0,2638.9,1.2587]
[1748441579425,3.2078,2639.0,2638.9,2.01625]
[1748441579627,3.2078,2639.0,2638.9,1.2587]
[1748441579829,3.2078,2639.0,2638.4,0.75767]
[1748441580130,0.75757,2638.8,2638.7,1.2615]
[1748441580436,0.75758,2638.8,2638.7,1.2615]
[1748441580627,3.2078,2639.0,2638.7,1.2615]
[1748441580824,3.2078,2639.4,2638.5,3.2078]
[1748441581138,0.75762,2638.7,2638.2,3.2078]
[1748441581331,3.2078,2638.8,2638.3,1.2615]
[1748441581535,0.75764,2638.6,2638.4,0.75767]
[1748441581732,0.75763,2638.6,2638.5,1.2615]
[1748441581931,3.96543,2638.6,2638.5,1.2615]
[1748441582132,0.75778,2638.1,2638.0,1.2353]
[1748441582431,0.7578,2638.0,2637.8,2.00274]
[1748441582638,0.75779,2638.1,2637.9,0.75783]
[1748441582829,0.00568429,2638.2,2637.8,1.2449]
[1748441583435,0.00568429,2638.2,2637.9,1.256]
[1748441583830,0.00568429,2638.2,2638.1,0.75778]
[1748441584233,0.00568429,2638.2,2638.1,5.75778]
[1748441584436,0.00568429,2638.2,2638.1,0.75778]
[1748441584630,0.00568429,2638.2,2638.1,8.96558]
[1748441585643,0.00568429,2638.2,2638.1,3.2078]
[1748441585934,0.00568429,2638.2,2638.0,5.09]
[1748441586134,0.00568429,2638.2,2638.1,1.244]
[1748441586740,0.76343429,2638.2,2638.1,1.244]
[1748441587843,0.76343429,2638.2,2637.7,3.2078]
[1748441587844,0.75786,2637.8,2637.7,3.2078]
[1748441588141,1.89459,2637.9,2637.4,3.2078]
[1748441588337,0.75795,2637.6,2637.5,1.244]
[1748441588834,3.2078,2637.7,2637.0,3.2078]
[1748441589037,3.2078,2637.7,2637.3,1.253]
[1748441589243,1.3417,2637.6,2637.3,1.253]
[1748441589936,0.75798,2637.4,2637.3,1.253]
[1748441590243,1.3417,2637.9,2637.4,0.75797]
[1748441590444,0.75792,2637.6,2637.5,1.253]
[1748441590742,0.07587,2638.0,2637.9,0.75783]
[1748441590943,0.00568429,2638.2,2638.1,0.75778]
[1748441591237,3.96521,2639.4,2638.5,1.89409]
[1748441591440,0.75748,2639.2,2638.8,3.2078]
[1748441591741,3.2078,2639.4,2638.9,3.20104]
[1748441591941,3.2078,2639.4,2638.9,2.4435]
[1748441592140,0.75752,2639.0,2638.9,2.4435]
[1748441592339,0.75752,2639.0,2638.9,1.253]
[1748441592638,0.00568429,2639.4,2638.9,1.253]
[1748441592639,2.08874,2639.3,2638.9,1.253]
[1748441592830,3.21348429,2639.4,2639.2,0.75743]
[1748441593144,3.21348429,2639.4,2639.3,1.2424]
[1748441593443,3.21348429,2639.4,2639.3,1.99983]
[1748441593740,0.00568429,2639.4,2639.3,1.99983]
[1748441594845,0.00568429,2639.4,2639.3,6.99983]
[1748441596046,0.1136,2639.6,2639.5,0.75737]
[1748441596444,0.1136,2639.6,2639.5,8.96517]
[1748441596650,3.2078,2640.2,2640.1,0.7572]
[1748441596941,1.3103,2640.6,2639.9,1.8931]
[1748441597147,0.00568429,2640.4,2640.3,0.75714]
[1748441598347,0.00568429,2640.4,2640.1,8.2978]
[1748441598348,0.76280429,2640.4,2640.2,0.75716]
[1748441598547,0.00568429,2640.4,2640.3,0.75714]
[1748441598953,0.00568429,2640.4,2640.3,10.84614]
[1748441599639,0.00568429,2640.4,2640.3,5.84614]
[1748441600641,0.75719,2640.2,2640.0,0.75723]
[1748441600844,0.75719,2640.2,2639.4,38.187]
[1748441600845,3.2078,2640.2,2639.7,0.7573]
[1748441601042,3.2078,2639.9,2639.8,0.75728]
[1748441601240,0.75726,2640.0,2639.8,0.75728]
[1748441601952,1.2461,2640.1,2639.6,1.1727]
[1748441602145,0.75723,2640.0,2639.9,0.75726]
[1748441602454,0.75723,2640.0,2639.6,1.1727]
[1748441602455,3.2078,2640.3,2640.2,0.75717]
[1748441602642,3.96494,2640.3,2640.1,0.75718]
[1748441602848,0.75717,2640.2,2640.1,0.75718]
[1748441603149,0.7573,2639.8,2639.7,0.75731]
[1748441603351,1.89315,2639.9,2639.2,3.2078]
[1748441603543,4.4539,2639.7,2639.2,3.2078]
[1748441603855,0.75736,2639.6,2639.5,0.75736]
[1748441604045,0.7574,2639.5,2639.4,0.75738]
[1748441604245,0.75736,2639.6,2639.5,0.75736]
[1748441604446,2.03046,2639.6,2639.5,0.75736]
[1748441604750,1.2731,2639.6,2639.5,0.75737]
[1748441605550,2.03044,2639.6,2639.5,0.75737]
[1748441605952,0.75743,2639.3,2639.2,3.96524]
[1748441606151,3.2078,2639.4,2639.0,0.00568429]
[1748441606452,1.2731,2639.3,2639.0,1.89947429]
[1748441606660,1.1586,2639.5,2639.4,0.7574]
[1748441606847,0.75742,2639.4,2639.3,0.75741]
[1748441607147,3.2078,2639.7,2639.6,0.75734]
[1748441607349,4.5094,2640.2,2640.1,0.7572]
[1748441607654,0.75724,2640.0,2639.9,0.75723]
[1748441607852,1.89301,2640.1,2639.4,3.2078]
[1748441608048,0.75733,2639.7,2639.6,0.75733]
[1748441608558,5.26668,2639.9,2639.8,0.75729]
[1748441609252,3.2078,2639.9,2639.8,0.75729]
[1748441609455,3.96506,2639.9,2639.8,0.75729]
[1748441609848,3.2078,2639.9,2639.8,0.75729]
[1748441610543,4.5094,2640.2,2640.1,0.7572]
[1748441610743,3.2078,2640.2,2640.1,0.7572]
[1748441611150,3.96497,2640.2,2640.1,0.7572]
[1748441611349,0.00568429,2640.4,2640.3,0.75714]
[1748441612351,3.2078,2638.1,2637.7,1.66402968]
[1748441612548,3.2078,2638.1,2636.5,6.44722564]
[1748441612549,0.75783,2637.9,2637.2,2.33000308]
[1748441612743,41.55783,2637.9,2636.7,1.2045]
[1748441612953,1.89439,2638.2,2637.0,0.75809]
[1748441612954,3.2078,2637.1,2637.0,0.75809]
[1748441613354,3.2078,2637.1,2636.8,0.00568429]
[1748441613755,3.2078,2637.1,2637.0,0.75809]
[1748441613956,3.2078,2637.1,2636.8,0.00568429]
[1748441614158,0.75812,2636.9,2636.8,0.00568429]
[1748441614362,3.2078,2637.1,2636.8,0.76382429]
[1748441614657,3.96587,2637.1,2636.8,0.00568429]
[1748441615050,3.2078,2637.1,2636.8,0.00568429]
[1748441615359,3.96587,2637.1,2636.8,0.00568429]
[1748441615559,3.96587,2637.1,2636.8,0.0815338]
[1748441616059,3.2078,2637.1,2637.0,0.75809]
[1748441616549,3.2078,2637.1,2637.0,5.0]
[1748441616755,3.2078,2637.1,2637.0,5.75809]
[1748441617351,0.00568429,2637.3,2637.2,0.75803]
[1748441617553,3.2078,2637.9,2637.0,9.5603]
[1748441617758,3.2078,2637.9,2637.2,1.89509]
[1748441617958,0.75779,2638.1,2637.8,0.75785]
[1748441618160,3.2078,2638.2,2637.9,1.3525]
[1748441618765,3.2078,2638.2,2638.0,0.7578]
[1748441618962,3.2078,2638.2,2638.1,2.11028]
[1748441619657,3.2078,2638.2,2638.1,7.11028]
[1748441621065,1.3474,2639.1,2638.3,1.8943]
[1748441621364,3.2078,2639.5,2639.4,0.7574]
[1748441621864,3.2078,2639.9,2638.9,6.7589]
[1748441622068,0.00568429,2639.7,2639.3,0.7574]
[1748441622370,0.00568429,2639.7,2639.4,1.3439]
[1748441622567,0.76299429,2639.7,2639.4,2.10127]
[1748441622764,0.00568429,2639.7,2639.6,0.75733]
[1748441623167,3.96488,2640.5,2639.8,1.89317]
[1748441623469,4.5101,2640.5,2639.9,9.9495]
[1748441623664,4.5101,2640.5,2639.7,5.415]
[1748441623665,3.96499,2640.1,2639.7,5.415]
[1748441623870,3.2078,2640.4,2640.1,0.75717]
[1748441624068,1.3023,2640.3,2640.2,0.75716]
[1748441624272,3.2078,2640.4,2640.3,0.75713]
[1748441626276,3.2078,2640.4,2640.3,2.11733]
[1748441626867,0.00568429,2640.5,2640.4,0.7571]
[1748441627069,3.96463,2641.4,2641.1,0.75688]
[1748441627277,3.2078,2641.4,2640.5,1.89264]
[1748441627574,0.75688,2641.2,2641.0,0.75692]
[1748441627774,1.2757,2641.1,2641.0,0.75692]
[1748441627976,1.2757,2641.1,2641.0,0.75693]
[1748441628173,1.2757,2641.1,2640.9,0.75694]
[1748441628370,1.2757,2641.1,2641.0,2.11713]
[1748441628777,3.21348429,2641.3,2641.1,0.75689]
[1748441628982,1.3303,2641.2,2641.1,0.75689]
[1748441629287,3.21348429,2641.3,2641.0,1.3602]
[1748441629478,3.21348429,2641.3,2641.1,0.7569]
[1748441629869,4.54378429,2641.3,2641.2,0.75687]
[1748441630178,4.54378429,2641.3,2641.0,1.3602]
[1748441630473,4.54378429,2641.3,2641.1,0.75689]
[1748441630772,4.54378429,2641.3,2641.0,1.3602]
[1748441630975,4.54378429,2641.3,2641.1,0.75688]
[1748441631176,5.30062429,2641.3,2641.2,1.3217]
[1748441631372,0.75692,2641.1,2640.8,0.00568429]
[1748441631574,0.75694,2641.0,2640.8,1.23478429]
[1748441631776,1.24,2641.0,2640.9,0.75696]
[1748441631975,1.99694,2641.0,2640.8,1.99175429]
[1748441632469,1.99695,2641.0,2640.8,1.99175429]
[1748441632675,1.24,2641.0,2640.9,0.75696]
[1748441632974,3.21348429,2641.3,2641.2,0.75687]
[1748441633176,3.21348429,2641.3,2640.9,1.2291]
[1748441633377,5.21033429,2641.3,2641.1,0.7569]
[1748441633575,0.75689,2641.2,2641.0,0.75692]
[1748441633880,5.21034429,2641.3,2641.1,0.75689]
[1748441634972,1.24568429,2641.3,2641.2,0.75687]
[1748441635172,0.00568429,2641.3,2641.2,0.75687]
[1748441635379,0.00568429,2641.3,2641.2,6.16787]
[1748441635874,0.00568429,2641.3,2641.0,1.2348]
[1748441636181,3.21348429,2641.3,2640.8,0.00568429]
[1748441636379,0.00568429,2641.3,2641.2,0.75687]
[1748441636980,1.28238429,2641.3,2641.2,0.75687]
[1748441638376,0.00568429,2641.3,2641.2,0.75687]
[1748441639181,3.21348429,2641.3,2641.2,0.75687]
[1748441639373,3.21348429,2641.3,2640.9,1.2348]
[1748441639579,0.00568429,2641.3,2641.2,0.75687]
[1748441639781,0.76252429,2641.3,2641.2,0.75687]
[1748441639986,0.00568429,2641.3,2641.2,0.75687]
[1748441642285,0.75688,2641.2,2641.0,5.183]
[1748441642485,0.75688,2641.2,2640.8,21.57313429]
[1748441642486,0.75696,2640.9,2640.8,0.00568429]
[1748441644589,3.21348429,2641.3,2641.2,0.75687]
[1748441644787,0.00568429,2641.3,2641.2,0.75687]
[1748441645480,0.00568429,2641.3,2640.9,6.4328]
[1748441645686,0.00568429,2641.3,2641.2,0.75687]
[1748441646077,0.00568429,2641.3,2641.1,0.75688]
[1748441646279,0.76254429,2641.3,2640.9,1.2498]
[1748441646479,0.75688,2641.2,2641.1,0.7569]
[1748441647193,0.75688,2641.2,2641.1,0.75689]
[1748441647486,1.8922,2641.2,2640.8,0.00568429]
[1748441647692,3.96476,2640.9,2640.8,0.00568429]
[1748441648083,3.96476,2640.9,2640.8,0.76267429]
[1748441648285,3.96476,2640.9,2640.8,0.00568429]
[1748441648585,0.75696,2640.9,2640.8,0.76267429]
[1748441648785,3.96476,2640.9,2640.8,0.00568429]
[1748441649086,3.2078,2641.2,2641.1,0.7569]
[1748441650687,3.96467,2641.2,2641.1,0.7569]
[1748441650986,3.2078,2641.2,2641.1,0.7569]
[1748441651186,0.00568429,2641.3,2641.2,0.75687]
[1748441652988,3.2078,2642.1,2642.0,0.75664]
[1748441653997,0.00378956,2642.3,2642.2,0.75659]
[1748441655799,1.342,2642.9,2642.8,0.75641]
[1748441656288,3.2078,2643.1,2643.0,0.75636]
[1748441656493,4.53086872,2643.1,2643.0,0.75636]
[1748441656895,4.53086872,2643.1,2642.9,0.75637]
[1748441657297,0.07566872,2643.1,2643.0,0.75636]
[1748441657488,0.75639,2642.9,2642.8,1.31598429]
[1748441657794,0.75639,2642.9,2642.8,4.29e-06]
[1748441657795,5.93839,2642.9,2642.8,4.29e-06]
[1748441657993,10.93839,2642.9,2642.8,4.29e-06]
[1748441658392,12.00212852,2642.9,2642.8,4.29e-06]
[1748441658594,52.98579,2642.9,2642.8,4.29e-06]
[1748441658895,53.15634257,2642.9,2642.8,4.29e-06]
[1748441659093,53.15633929,2642.9,2642.8,4.29e-06]
[1748441659396,54.21893868,2642.9,2642.8,4.29e-06]
[1748441659801,54.21899218,2642.9,2642.8,4.29e-06]
[1748441659992,54.04838752,2642.9,2642.8,4.29e-06]
[1748441661103,3.06738752,2642.9,2642.8,4.29e-06]
[1748441661297,2.00379,2642.9,2642.8,4.29e-06]
[1748441662102,2.00379,2642.9,2642.8,0.75639429]
[1748441662103,0.75639,2642.9,2642.8,0.75639429]
[1748441662490,3.21348,2643.1,2642.8,4.29e-06]
[1748441662689,1.2344,2643.0,2642.9,0.75639]
[1748441662994,3.21348,2643.1,2643.0,0.75636]
[1748441663189,3.21348,2643.1,2642.9,2.07366]
[1748441663395,0.75636,2643.0,2642.9,2.07366]
[1748441663607,0.75636,2643.0,2642.9,1.3173]
[1748441663792,1.99076,2643.0,2642.9,2.07369]
[1748441664193,1.99076,2643.0,2642.9,1.3173]
[1748441664902,0.75639,2642.9,2642.8,4.29e-06]
[1748441665098,2.08299,2642.9,2642.8,4.29e-06]
[1748441666098,7.08299,2642.9,2642.8,4.29e-06]
[1748441666698,8.1422058,2642.9,2642.8,4.29e-06]
[1748441667002,13.3231817,2642.9,2642.8,4.29e-06]
[1748441667203,54.1231817,2642.9,2642.8,4.29e-06]
[1748441667401,53.06399,2642.9,2642.8,4.29e-06]
[1748441667603,54.12326239,2642.9,2642.8,4.29e-06]
[1748441667804,53.06399,2642.9,2642.8,4.29e-06]
[1748441668101,47.88299,2642.9,2642.8,4.29e-06]
[1748441668409,53.06399,2642.9,2642.8,4.29e-06]
[1748441669004,2.08299,2642.9,2642.8,4.29e-06]
[1748441670102,0.75639,2642.9,2642.8,0.75641429]
[1748441670303,0.75639,2642.9,2642.8,4.29e-06]
[1748441670807,0.75639,2642.9,2642.8,0.75641429]
[1748441671307,0.75639,2642.9,2642.8,4.29e-06]
[1748441671505,0.75639,2642.9,2642.8,1.99941429]
[1748441671898,0.75639,2643.0,2642.9,0.75637]
[1748441672101,0.75639,2642.9,2642.8,1.99939429]
[1748441672302,0.75639,2642.9,2642.8,1.99941429]
[1748441672499,0.00568,2643.1,2643.0,0.75636]
[1748441672703,3.2078,2643.4,2643.3,0.75627]
[1748441672909,3.2078,2644.0,2643.8,0.75612]
[1748441673205,3.96387,2644.0,2643.9,1.243]
[1748441674106,3.96387,2644.0,2643.3,1.89065]
[1748441674300,3.2078,2643.3,2641.7,2.32757911]
[1748441674505,1.3054,2643.9,2641.7,2.32757911]
[1748441674506,5.09911,2642.5,2641.7,2.32757911]
[1748441674704,3.2078,2641.8,2641.2,7.135]
[1748441674909,0.75672,2641.8,2641.6,0.75674]
[1748441675205,3.2078,2641.7,2641.6,0.75676]
[1748441675607,3.2078,2641.7,2641.6,5.75676]
[1748441676009,3.2078,2641.7,2641.6,5.882]
[1748441676202,3.2078,2641.7,2641.6,6.63876]
[1748441676407,3.2078,2641.7,2641.6,0.75676]
[1748441676813,3.2078,2641.7,2641.5,5.882]
[1748441677112,3.2078,2641.7,2641.4,0.00567344]
[1748441677513,3.2078,2641.7,2641.5,5.882]
[1748441677715,3.2078,2641.7,2641.6,1.261]
[1748441678719,3.2078,2641.7,2641.6,2.01776]
[1748441679814,3.2078,2641.7,2641.6,1.261]
[1748441680011,3.2078,2641.7,2639.0,4.21215445]
[1748441680216,3.2078,2639.9,2639.0,4.21215445]
[1748441680414,3.2078,2639.1,2638.5,3.36012492]
[1748441680618,3.2078,2638.6,2638.5,1.3555]
[1748441680818,3.2078,2638.6,2637.3,4.4479]
[1748441681117,3.21347809,2638.2,2637.7,0.0056844]
[1748441681319,3.21347809,2638.2,2637.8,5.882]
[1748441681818,3.21347809,2638.2,2637.8,12.77664]
[1748441682018,3.21347809,2638.2,2638.1,0.75777]
[1748441683216,3.21347809,2638.2,2638.0,0.75777]
[1748441683523,3.21347809,2638.2,2637.9,5.885]
[1748441684127,3.21347809,2638.2,2638.0,1.2726]
[1748441684726,3.21347809,2638.2,2638.0,6.2726]
[1748441685020,0.00567809,2638.2,2638.0,6.2726]
[1748441685324,3.2078,2638.6,2638.0,9.4804]
[1748441685527,1.3423,2639.4,2638.4,3.2078]
[1748441685528,3.2078,2638.9,2638.4,3.2078]
[1748441685721,3.2078,2638.9,2638.5,27.7536]
[1748441685922,3.2078,2638.9,2638.4,3.2078]
[1748441686118,3.2078,2638.0,2636.0,3.2078]
[1748441686421,3.2078,2636.3,2635.4,26.0668]
[1748441686917,3.2078,2636.3,2635.4,3.2836898]
[1748441687221,0.0056844,2636.1,2635.6,0.0056844]
[1748441687618,0.0056844,2636.1,2635.6,0.08156844]
[1748441688122,0.0056844,2636.1,2635.6,0.0056844]
[1748441688622,3.2078,2636.0,2635.6,0.0056844]
[1748441689020,0.0056844,2636.1,2635.6,5.0056844]
[1748441689224,0.0056844,2636.1,2635.6,0.0056844]
[1748441689828,0.0056844,2636.1,2635.8,3.2078]
[1748441690123,0.0056844,2636.1,2636.0,3.2078]
[1748441690328,3.2078,2636.9,2636.0,3.2078]
[1748441691024,3.2078,2636.9,2636.1,7.386]
[1748441691225,3.2078,2636.9,2636.1,30.062]
[1748441691426,3.2078,2636.9,2636.4,3.2078]
[1748441691727,3.2078,2637.2,2636.7,3.2078]
[1748441691927,3.2078,2637.2,2636.8,7.387]
[1748441692126,3.2078,2637.2,2636.9,7.387]
[1748441692423,4.4492,2637.5,2637.0,1.2579]
[1748441692627,3.2078,2637.5,2637.0,1.2635844]
[1748441693928,3.2078,2637.5,2637.1,7.387]
[1748441694130,3.2078,2637.3,2637.2,1.2579]
[1748441694927,8.2078,2637.3,2636.1,7.388]
[1748441695126,3.2078,2636.5,2636.1,7.388]
[1748441695330,3.2078,2636.5,2636.2,1.2687]
[1748441696124,3.2078,2636.5,2636.3,7.13]
[1748441697229,0.0056844,2636.6,2636.4,8.3997]
[1748441697631,0.0056844,2636.6,2636.4,1.2687]
[1748441697933,0.0056844,2636.6,2636.5,7.131]
[1748441698929,0.0056844,2636.6,2636.4,7.131]
[1748441699134,3.2078,2636.5,2636.4,7.131]
[1748441699427,3.2078,2635.4,2633.5,3.2078]
[1748441699634,3.2078,2634.5,2634.1,1.2746]
[1748441700027,3.2078,2634.5,2633.6,1.1859]
[1748441700225,15.3388,2634.5,2632.6,3.2078]
[1748441700426,0.1138,2634.7,2632.7,0.07596763]
[1748441700427,3.2078,2632.9,2632.7,0.07596763]
[1748441701425,3.2078,2633.5,2632.7,5.07596763]
[1748441701629,3.2078,2633.5,2632.8,4.5512]
[1748441701833,3.21349595,2633.8,2633.1,3.2078]
[1748441702033,3.21349595,2633.8,2633.2,30.7964]
[1748441702632,0.00569595,2633.8,2633.2,1.3434]
[1748441702832,3.21349595,2633.8,2633.3,7.132]
[1748441703035,3.21349595,2633.8,2633.4,1.3434]
[1748441703235,3.21349595,2633.8,2633.5,7.135]
[1748441703728,3.21349595,2633.8,2633.4,1.3434]
[1748441703928,3.2078,2633.5,2633.4,8.4784]
[1748441704129,3.2078,2633.5,2632.5,10.34849595]
[1748441704336,3.2078,2633.0,2632.5,7.14069595]
[1748441704537,3.2078,2633.0,2632.6,1.3547]
[1748441704838,3.2078,2633.0,2632.5,0.00569595]
[1748441705029,0.00569595,2633.8,2632.5,0.00569595]
[1748441705030,3.2078,2632.6,2632.5,0.00569595]
[1748441706038,3.2078,2632.6,2632.0,1.3547]
[1748441706039,8.2078,2632.6,2631.3,38.226]
[1748441706239,3.2078,2632.0,2631.4,8.2437]
[1748441706433,1.2671,2632.5,2631.4,4.5625]
[1748441706434,3.2078,2632.4,2631.4,4.5625]
[1748441706639,3.2078,2632.8,2632.0,3.2078]
[1748441706941,0.00569595,2632.7,2632.1,1.36039595]
[1748441707136,0.00569595,2632.7,2632.2,6.889]
[1748441707436,8.21349595,2632.7,2627.9,0.3781]
[1748441707642,3.2078,2631.3,2630.7,3.2078]
[1748441707837,3.2078,2631.9,2630.9,3.2078]
[1748441708140,3.2078,2631.6,2631.0,6.889]
[1748441708440,0.00569595,2631.6,2631.0,10.10249595]
[1748441708639,3.2078,2631.5,2631.1,1.2293]
[1748441708841,0.00569595,2631.6,2631.2,3.2078]
[1748441709138,3.2078,2632.5,2631.5,3.2078]
[1748441709341,3.2078,2632.5,2631.6,39.4693]
[1748441709542,3.2078,2632.5,2631.7,6.892]
[1748441709839,1.3367,2632.4,2631.8,3.2078]
[1748441710039,1.3367,2632.4,2631.9,1.2293]
[1748441710244,0.00569595,2632.4,2631.9,1.2293]
[1748441710441,3.2078,2632.3,2632.0,6.892]
[1748441710744,3.2078,2630.6,2628.4,3.2078]
[1748441710946,1.1964,2632.2,2629.1,0.3781]
[1748441711134,6.892,2632.1,2629.3,0.3781]
[1748441711337,3.2078,2630.0,2629.4,1.34666298]
[1748441711537,3.2078,2630.0,2629.4,0.07606298]
[1748441711747,3.2078,2629.7,2629.4,1.35235893]
[1748441711950,3.2078,2629.7,2629.4,0.08175893]
[1748441712641,3.2078,2629.7,2629.4,0.00569595]
[1748441712841,3.2078,2629.7,2629.3,0.3781]
[1748441712842,8.2078,2629.7,2629.1,0.3781]
[1748441713042,3.2078,2629.2,2629.1,1.13845]
[1748441713341,3.2078,2629.2,2629.1,0.76035]
[1748441713943,3.2078,2629.5,2629.4,0.76027]
[1748441714144,2.43535,2629.5,2629.0,1.90096]
[1748441714338,3.2078,2629.8,2629.7,0.76018]
[1748441714541,0.00569595,2630.0,2629.9,0.76012]
[1748441714741,0.00569595,2630.0,2629.9,7.65512]
[1748441715043,3.2078,2629.9,2627.8,1.90182]
[1748441715238,3.2078,2628.5,2628.4,0.76055]
[1748441715437,3.2078,2628.5,2628.4,7.65755]
[1748441715643,3.2078,2628.9,2628.4,6.897]
[1748441715849,1.3086,2628.8,2628.5,0.5706]
[1748441716144,1.3086,2628.8,2628.7,0.76047]
[1748441716344,1.28854357,2628.8,2628.7,0.76047]
[1748441716648,6.28284762,2628.8,2628.5,0.5706]
[1748441716846,4.61044357,2628.8,2628.7,0.76047]
[1748441717142,9.60474762,2628.8,2628.7,0.76047]
[1748441717341,4.61044357,2628.8,2628.7,0.76047]
[1748441718542,9.60474762,2628.8,2628.7,0.76047]
[1748441718742,1.40264357,2628.8,2628.7,0.76047]
[1748441718935,9.60474762,2628.8,2628.5,0.5706]
[1748441719340,9.61044357,2628.8,2627.2,3.2078]
[1748441719535,3.2078,2627.9,2627.0,1.90237]
[1748441719744,3.2078,2628.3,2627.2,3.2078]
[1748441720048,1.254,2628.2,2628.1,0.76064]
[1748441720342,1.254,2628.2,2628.1,12.41064]
[1748441720750,1.254,2628.2,2628.1,7.41064]
[1748441721552,1.254,2628.2,2628.1,0.76064]
[1748441721746,1.254,2628.2,2628.1,7.41264]
[1748441722048,3.2078,2628.6,2628.5,0.76053]
[1748441722349,8.2078,2628.6,2627.9,35.7593351]
[1748441722548,3.2078,2628.2,2628.1,0.76064]